fUSD/lending_fUSD_20240526
["ID","MTS","AMOUNT","RATE_DAILY","PERIOD"]
[328002753,1716766320275,-500.0,0.00029589,4]
[328002754,1716766320292,-500.0,0.00029589,4]
[328002755,1716766320308,-874.71,0.00029589,4]
[328002756,1716766320322,-500.0,0.00029589,4]
[328002757,1716766320336,-835.43,0.00029589,4]
[328002758,1716766320350,-529.68,0.00029589,4]
[328002759,1716766320364,-1097.89,0.00029589,4]
[328002760,1716766320379,-1126.6,0.00029589,4]
[328002761,1716766320395,-500.0,0.00029589,4]
[328002762,1716766320409,-500.0,0.00029589,4]
[328002763,1716766320425,-866.64,0.00029589,4]
[328002764,1716766320441,-292.14,0.00029589,4]
[328002765,1716766320456,-524.51,0.00029589,4]
[328002766,1716766320473,-500.0,0.00029589,4]
[328002767,1716766320488,-500.0,0.00029589,4]
[328002768,1716766320508,-500.0,0.00029589,4]
[328002769,1716766320524,-500.0,0.00029589,4]
[328002770,1716766320539,-500.0,0.00029589,4]
[328002771,1716766320555,-500.0,0.00029589,4]
[328002772,1716766320570,-500.0,0.00029589,4]
[328002773,1716766320587,-500.0,0.00029589,4]
[328002774,1716766320602,-500.0,0.00029589,4]
[328002775,1716766320617,-754.22,0.00029589,4]
[328002776,1716766320630,-615.33,0.00029589,4]
[328002777,1716766320645,-1051.14,0.00029589,4]
[328002778,1716766320659,-500.0,0.00029589,4]
[328002779,1716766320673,-500.0,0.00029589,4]
[328002780,1716766320687,-500.0,0.00029589,4]
[328002781,1716766320702,-500.0,0.00029589,4]
[328002782,1716766320717,-500.0,0.00029589,4]
[328002783,1716766320731,-529.88,0.00029589,4]
[328002784,1716766320749,-500.0,0.00029589,4]
[328002785,1716766320763,-500.0,0.00029589,4]
[328002786,1716766320777,-1051.14,0.00029589,4]
[328002787,1716766320795,-500.0,0.00029589,4]
[328002788,1716766320810,-500.0,0.00029589,4]
[328002789,1716766320824,-500.0,0.00029589,4]
[328002790,1716766320840,-500.0,0.00029589,4]
[328002791,1716766320855,-500.0,0.00029589,4]
[328002792,1716766320869,-500.0,0.00029589,4]
[328002793,1716766320884,-1380.33,0.00029589,4]
[328002794,1716766320898,-500.0,0.00029589,4]
[328002795,1716766320912,-828.3,0.00029589,4]
[328002796,1716766320926,-508.75060093,0.00029589,4]
[328002797,1716766320941,-500.0,0.00029589,4]
[328002798,1716766320957,-832.97,0.00029589,4]
[328002799,1716766321198,-500.0,0.00029589,4]
[328002800,1716766321217,-500.0,0.00029589,4]
[328002801,1716766321227,-500.0,0.00029589,4]
[328002802,1716766321237,-500.0,0.00029589,4]
[328002803,1716766321252,-716.96,0.00029589,4]
[328002804,1716766321262,-500.0,0.00029589,4]
[328002805,1716766321272,-500.0,0.00029589,4]
[328002806,1716766321281,-500.0,0.00029589,4]
[328002807,1716766321293,-500.0,0.00029589,4]
[328002808,1716766321303,-500.0,0.00029589,4]
[328002809,1716766321313,-500.0,0.00029589,4]
[328002810,1716766321323,-500.0,0.00029589,4]
[328002811,1716766321333,-500.0,0.00029589,4]
[328002812,1716766321344,-451.38,0.00029589,4]
[328002813,1716766321353,-567.54,0.00029589,4]
[328002814,1716766321363,-500.0,0.00029589,4]
[328002815,1716766321373,-500.0,0.00029589,4]
[328002816,1716766321382,-500.0,0.00029589,4]
[328002817,1716766321392,-500.0,0.00029589,4]
[328002818,1716766321401,-506.0,0.00029589,4]
[328002819,1716766321410,-500.0,0.00029589,4]
[328002820,1716766321419,-500.0,0.00029589,4]
[328002821,1716766321429,-500.0,0.00029589,4]
[328002822,1716766321438,-616.66,0.00029589,4]
[328002823,1716766321448,-500.0,0.00029589,4]
[328002824,1716766321458,-500.0,0.00029589,4]
[328002825,1716766321468,-500.0,0.00029589,4]
[328002826,1716766321478,-500.0,0.00029589,4]
[328002827,1716766321487,-500.0,0.00029589,4]
[328002828,1716766321499,-500.0,0.00029589,4]
[328002829,1716766321508,-500.0,0.00029589,4]
[328002830,1716766321518,-500.0,0.00029589,4]
[328002831,1716766321527,-500.0,0.00029589,4]
[328002832,1716766321537,-500.0,0.00029589,4]
[328002833,1716766321547,-500.0,0.00029589,4]
[328002834,1716766321556,-500.0,0.00029589,4]
[328002835,1716766321565,-399.96,0.00029589,4]
[328002836,1716766321575,-500.0,0.00029589,4]
[328002837,1716766321585,-179.56,0.00029589,4]
[328002838,1716766321594,-500.0,0.00029589,4]
[328002839,1716766321603,-808.3,0.00029589,4]
[328002840,1716766321612,-500.0,0.00029589,4]
[328002841,1716766321622,-500.0,0.00029589,4]
[328002842,1716766321632,-524.36,0.00029589,4]
[328002843,1716766321641,-500.0,0.00029589,4]
[328002844,1716766321651,-500.0,0.00029589,4]
[328002845,1716766321660,-500.0,0.00029589,4]
[328002846,1716766321669,-500.0,0.00029589,4]
[328002847,1716766321678,-500.0,0.00029589,4]
[328002848,1716766321688,-1217.19,0.00029589,4]
[328002849,1716766321697,-500.0,0.00029589,4]
[328002850,1716766321707,-520.62,0.00029589,4]
[328002851,1716766321717,-500.0,0.00029589,4]
[328002852,1716766321726,-500.0,0.00029589,4]
[328002853,1716766321736,-490.0,0.00029589,4]
[328002854,1716766321746,-500.0,0.00029589,4]
[328002855,1716766321756,-500.0,0.00029589,4]
[328002856,1716766321766,-500.0,0.00029589,4]
[328002857,1716766321775,-500.0,0.00029589,4]
[328002858,1716766321785,-500.0,0.00029589,4]
[328002859,1716766321794,-500.0,0.00029589,4]
[328002860,1716766321804,-1635.18,0.00029589,4]
[328002861,1716766321814,-500.0,0.00029589,4]
[328002862,1716766321823,-500.0,0.00029589,4]
[328002863,1716766321833,-500.0,0.00029589,4]
[328002864,1716766321843,-500.0,0.00029589,4]
[328002865,1716766321852,-988.23,0.00029589,4]
[328002866,1716766321862,-500.0,0.00029589,4]
[328002867,1716766321872,-500.0,0.00029589,4]
[328002868,1716766321883,-951.24,0.00029589,4]
[328002869,1716766321892,-580.96,0.00029589,4]
[328002870,1716766321902,-4763.6,0.00029589,4]
[328002871,1716766321911,-1408.55,0.00029589,4]
[328002872,1716766321922,-500.0,0.00029589,4]
[328002873,1716766321931,-773.49,0.00029589,4]
[328002874,1716766321940,-500.0,0.00029589,4]
[328002875,1716766321950,-418.92041724,0.00029589,4]
[328002876,1716766321960,-500.0,0.00029589,4]
[328002877,1716766321969,-1097.24,0.00029589,4]
[328002878,1716766321978,-1770.78,0.00029589,4]
[328002879,1716766321988,-477.0,0.00029589,4]
[328002880,1716766321999,-500.0,0.00029589,4]
[328002881,1716766322009,-1231.06,0.00029589,4]
[328002882,1716766322019,-12518.24,0.00029589,4]
[328002883,1716766322029,-377.0,0.00029589,4]
[328002884,1716766322039,-1324.66,0.00029589,4]
[328002885,1716766322048,-716.14,0.00029589,4]
[328002886,1716766322058,-500.0,0.00029589,4]
[328002887,1716766322067,-500.0,0.00029589,4]
[328002888,1716766322076,-808.36,0.00029589,4]
[328002889,1716766322086,-500.0,0.00029589,4]
[328002890,1716766322096,-505.35,0.00029589,4]
[328002891,1716766322105,-648.03,0.00029589,4]
[328002892,1716766322115,-500.0,0.00029589,4]
[328002893,1716766322124,-2740.82,0.00029589,4]
[328002894,1716766322134,-1164.95,0.00029589,4]
[328002895,1716766322144,-500.0,0.00029589,4]
[328002896,1716766322154,-500.0,0.00029589,4]
[328002897,1716766322164,-595.23,0.00029589,4]
[328002898,1716766322173,-745.74,0.00029589,4]
[328002899,1716766322182,-566.07,0.00029589,4]
[328002900,1716766322191,-563.58,0.00029589,4]
[328002901,1716766322200,-1642.45,0.00029589,4]
[328002902,1716766322209,-538.9,0.00029589,4]
[328002903,1716766322218,-500.0,0.00029589,4]
[328002904,1716766322228,-269.4,0.00029589,4]
[328002905,1716766322237,-523.95,0.00029589,4]
[328002906,1716766322251,-500.0,0.00029589,4]
[328002907,1716766322261,-500.0,0.00029589,4]
[328002908,1716766322270,-5551.36,0.00029589,4]
[328002909,1716766322279,-266.87,0.00029589,4]
[328002910,1716766322291,-500.0,0.00029589,4]
[328002911,1716766322300,-500.0,0.00029589,4]
[328002912,1716766322310,-500.0,0.00029589,4]
[328002913,1716766322320,-593.26,0.00029589,4]
[328002914,1716766322332,-972.91,0.00029589,4]
[328002915,1716766322342,-500.0,0.00029589,4]
[328002916,1716766322352,-561.18,0.00029589,4]
[328002917,1716766322361,-500.0,0.00029589,4]
[328002918,1716766322371,-575.29,0.00029589,4]
[328002919,1716766322381,-500.0,0.00029589,4]
[328002920,1716766322390,-881.68,0.00029589,4]
[328002921,1716766322401,-500.0,0.00029589,4]
[328002922,1716766322410,-1259.79,0.00029589,4]
[328002923,1716766322420,-500.0,0.00029589,4]
[328002924,1716766322430,-605.76,0.00029589,4]
[328002925,1716766322439,-3536.07,0.00029589,4]
[328002926,1716766322448,-500.0,0.00029589,4]
[328002927,1716766322458,-850.48,0.00029589,4]
[328002928,1716766322467,-500.0,0.00029589,4]
[328002929,1716766322477,-826.83,0.00029589,4]
[328002930,1716766322488,-500.0,0.00029589,4]
[328002931,1716766322499,-500.0,0.00029589,4]
[328002932,1716766322509,-1946.87,0.00029589,4]
[328002933,1716766322518,-500.0,0.00029589,4]
[328002934,1716766322528,-1471.62,0.00029589,4]
[328002935,1716766322537,-500.0,0.00029589,4]
[328002936,1716766322546,-500.0,0.00029589,4]
[328002937,1716766322556,-1299.03,0.00029589,4]
[328002938,1716766322566,-874.0,0.00029589,4]
[328002939,1716766322576,-654.22,0.00029589,4]
[328002940,1716766322585,-500.0,0.00029589,4]
[328002941,1716766322595,-500.0,0.00029589,4]
[328002942,1716766322604,-509.25,0.00029589,4]
[328002943,1716766322613,-500.0,0.00029589,4]
[328002944,1716766322623,-777.17,0.00029589,4]
[328002945,1716766322634,-1565.29,0.00029589,4]
[328002946,1716766322643,-500.0,0.00029589,4]
[328002947,1716766322653,-855.17,0.00029589,4]
[328002948,1716766322663,-701.7,0.00029589,4]
[328002949,1716766322672,-500.0,0.00029589,4]
[328002950,1716766322682,-500.0,0.00029589,4]
[328002951,1716766322691,-8290.14,0.00029589,4]
[328002952,1716766322701,-500.0,0.00029589,4]
[328002953,1716766322711,-761.08,0.00029589,4]
[328002954,1716766322721,-500.0,0.00029589,4]
[328002955,1716766322730,-599.5,0.00029589,4]
[328002956,1716766322740,-500.0,0.00029589,4]
[328002957,1716766322752,-500.0,0.00029589,4]
[328002958,1716766322762,-643.13,0.00029589,4]
[328002959,1716766322771,-500.0,0.00029589,4]
[328002960,1716766322780,-500.0,0.00029589,4]
[328002961,1716766322790,-500.0,0.00029589,4]
[328002962,1716766322799,-500.0,0.00029589,4]
[328002963,1716766322808,-500.0,0.00029589,4]
[328002964,1716766322817,-4278.59,0.00029589,4]
[328002965,1716766322827,-500.0,0.00029589,4]
[328002966,1716766322836,-500.0,0.00029589,4]
[328002967,1716766322845,-500.0,0.00029589,4]
[328002968,1716766322855,-6703.51,0.00029589,4]
[328002969,1716766322864,-500.0,0.00029589,4]
[328002970,1716766322874,-1138.56,0.00029589,4]
[328002971,1716766322884,-500.0,0.00029589,4]
[328002972,1716766322894,-500.0,0.00029589,4]
[328002973,1716766322902,-500.0,0.00029589,4]
[328002974,1716766322911,-880.9,0.00029589,4]
[328002975,1716766322921,-1237.34,0.00029589,4]
[328002976,1716766322931,-500.0,0.00029589,4]
[328002977,1716766322941,-772.3,0.00029589,4]
[328002978,1716766322950,-891.81,0.00029589,4]
[328002979,1716766322960,-500.0,0.00029589,4]
[328002980,1716766322970,-588.35,0.00029589,4]
[328002981,1716766322979,-500.0,0.00029589,4]
[328002982,1716766322989,-500.0,0.00029589,4]
[328002983,1716766323002,-930.12,0.00029589,4]
[328002984,1716766323011,-500.0,0.00029589,4]
[328002985,1716766323021,-723.38,0.00029589,4]
[328002986,1716766323030,-500.0,0.00029589,4]
[328002987,1716766323040,-3019.87,0.00029589,4]
[328002988,1716766323049,-370.35,0.00029589,4]
[328002989,1716766323058,-500.0,0.00029589,4]
[328002990,1716766323068,-500.0,0.00029589,4]
[328002991,1716766323077,-525.10632036,0.00029589,4]
[328002992,1716766323087,-500.0,0.00029589,4]
[328002993,1716766323097,-500.0,0.00029589,4]
[328002994,1716766323107,-500.0,0.00029589,4]
[328002995,1716766323116,-500.0,0.00029589,4]
[328002996,1716766323125,-737.24,0.00029589,4]
[328002997,1716766323134,-500.0,0.00029589,4]
[328002998,1716766323144,-3353.66,0.00029589,4]
[328002999,1716766323153,-500.0,0.00029589,4]
[328003000,1716766323163,-500.0,0.00029589,4]
[328003001,1716766323172,-1655.73,0.00029589,4]
[328003002,1716766323181,-500.0,0.00029589,4]
[328003003,1716766323191,-628.01,0.00029589,4]
[328003004,1716766323200,-557.95,0.00029589,4]
[328003005,1716766323209,-509.85,0.00029589,4]
[328003006,1716766323219,-1130.95,0.00029589,4]
[328003007,1716766323228,-500.0,0.00029589,4]
[328003008,1716766323237,-2845.63,0.00029589,4]
[328003009,1716766323253,-1950.47,0.00029589,4]
[328003010,1716766323263,-902.66,0.00029589,4]
[328003011,1716766323272,-786.5,0.00029589,4]
[328003012,1716766323283,-7054.88,0.00029589,4]
[328003013,1716766323292,-1344.42,0.00029589,4]
[328003014,1716766323302,-500.0,0.00029589,4]
[328003015,1716766323311,-500.0,0.00029589,4]
[328003016,1716766323320,-1190.17,0.00029589,4]
[328003017,1716766323332,-693.7,0.00029589,4]
[328003018,1716766323342,-500.0,0.00029589,4]
[328003019,1716766323352,-792.19,0.00029589,4]
[328003020,1716766323361,-500.0,0.00029589,4]
[328003021,1716766323371,-500.0,0.00029589,4]
[328003022,1716766323380,-500.0,0.00029589,4]
[328003023,1716766323391,-500.0,0.00029589,4]
[328003024,1716766323400,-500.0,0.00029589,4]
[328003025,1716766323410,-500.0,0.00029589,4]
[328003026,1716766323420,-1616.54,0.00029589,4]
[328003027,1716766323430,-753.14,0.00029589,4]
[328003028,1716766323440,-500.0,0.00029589,4]
[328003029,1716766323449,-735.26,0.00029589,4]
[328003030,1716766323459,-500.0,0.00029589,4]
[328003031,1716766323468,-1478.27,0.00029589,4]
[328003032,1716766323478,-1672.85,0.00029589,4]
[328003033,1716766323487,-500.0,0.00029589,4]
[328003034,1716766323498,-500.0,0.00029589,4]
[328003035,1716766323507,-500.0,0.00029589,4]
[328003036,1716766323517,-500.0,0.00029589,4]
[328003037,1716766323527,-1055.1,0.00029589,4]
[328003038,1716766323537,-1222.14,0.00029589,4]
[328003039,1716766323547,-564.5,0.00029589,4]
[328003040,1716766323556,-500.0,0.00029589,4]
[328003041,1716766323566,-2006.47,0.00029589,4]
[328003042,1716766323575,-1219.52,0.00029589,4]
[328003043,1716766323585,-500.0,0.00029589,4]
[328003044,1716766323594,-600.20013497,0.00029589,4]
[328003045,1716766323604,-860.6,0.00029589,4]
[328003046,1716766323614,-500.0,0.00029589,4]
[328003047,1716766323624,-1285.66,0.00029589,4]
[328003048,1716766323634,-500.0,0.00029589,4]
[328003049,1716766323643,-500.0,0.00029589,4]
[328003050,1716766323652,-500.0,0.00029589,4]
[328003051,1716766323662,-1245.87,0.00029589,4]
[328003052,1716766323672,-500.0,0.00029589,4]
[328003053,1716766323681,-500.0,0.00029589,4]
[328003054,1716766323691,-500.0,0.00029589,4]
[328003055,1716766323700,-500.0,0.00029589,4]
[328003056,1716766323711,-500.0,0.00029589,4]
[328003057,1716766323720,-1054.38,0.00029589,4]
[328003058,1716766323729,-500.0,0.00029589,4]
[328003059,1716766323739,-686.51,0.00029589,4]
[328003060,1716766323749,-500.0,0.00029589,4]
[328003061,1716766323758,-500.0,0.00029589,4]
[328003062,1716766323767,-500.0,0.00029589,4]
[328003063,1716766323776,-2090.3,0.00029589,4]
[328003064,1716766323786,-500.0,0.00029589,4]
[328003065,1716766323795,-500.0,0.00029589,4]
[328003066,1716766323804,-500.0,0.00029589,4]
[328003067,1716766323814,-4489.53,0.00029589,4]
[328003068,1716766323823,-500.0,0.00029589,4]
[328003069,1716766323832,-500.0,0.00029589,4]
[328003070,1716766323841,-500.0,0.00029589,4]
[328003071,1716766323850,-357.48579298,0.00029589,4]
[328003072,1716766323860,-500.0,0.00029589,4]
[328003073,1716766324024,-500.0,0.00029589,4]
[328003074,1716766324034,-500.0,0.00029589,4]
[328003075,1716766324044,-660.84,0.00029589,4]
[328003076,1716766324054,-500.0,0.00029589,4]
[328003077,1716766324063,-1241.08,0.00029589,4]
[328003078,1716766324073,-500.0,0.00029589,4]
[328003079,1716766324083,-500.0,0.00029589,4]
[328003080,1716766324092,-1622.1,0.00029589,4]
[328003081,1716766324104,-1457.46,0.00029589,4]
[328003082,1716766324113,-500.0,0.00029589,4]
[328003083,1716766324123,-519.03,0.00029589,4]
[328003084,1716766324133,-500.0,0.00029589,4]
[328003085,1716766324142,-500.0,0.00029589,4]
[328003086,1716766324151,-767.41,0.00029589,4]
[328003087,1716766324160,-540.35,0.00029589,4]
[328003088,1716766324170,-500.0,0.00029589,4]
[328003089,1716766324179,-500.0,0.00029589,4]
[328003090,1716766324188,-535.71,0.00029589,4]
[328003091,1716766324198,-3162.97,0.00029589,4]
[328003092,1716766324207,-754.4,0.00029589,4]
[328003093,1716766324216,-1446.35,0.00029589,4]
[328003094,1716766324225,-500.0,0.00029589,4]
[328003095,1716766324235,-500.0,0.00029589,4]
[328003096,1716766324250,-500.0,0.00029589,4]
[328003097,1716766324259,-500.0,0.00029589,4]
[328003098,1716766324268,-500.0,0.00029589,4]
[328003099,1716766324278,-656.74,0.00029589,4]
[328003100,1716766324288,-196.66837734,0.00029589,4]
[328003101,1716766324298,-1154.85,0.00029589,4]
[328003102,1716766324307,-698.24,0.00029589,4]
[328003103,1716766324316,-1228.33,0.00029589,4]
[328003104,1716766324328,-1334.79,0.00029589,4]
[328003105,1716766324338,-962.47,0.00029589,4]
[328003106,1716766324347,-500.0,0.00029589,4]
[328003107,1716766324356,-500.0,0.00029589,4]
[328003108,1716766324365,-594.66,0.00029589,4]
[328003109,1716766324374,-500.0,0.00029589,4]
[328003110,1716766324383,-2003.10287017,0.00029669,2]
[328003111,1716766324393,-150.0,0.000298,18]
[328003112,1716766324403,-1500.0,0.00029858,5]
[328003113,1716766324413,-1500.0,0.00029858,6]
[328003114,1716766324422,-1500.0,0.00029858,7]
[328003115,1716766324432,-265.44,0.00029858,8]
[328003116,1716766324442,-2489.65,0.00029862,4]
[328003117,1716766324451,-769.28,0.00029862,4]
[328003118,1716766324461,-150.0,0.00029862,2]
[328003119,1716766324470,-500.0,0.00029863,4]
[328003120,1716766324480,-525.2,0.00029863,4]
[328003121,1716766324490,-500.0,0.00029863,4]
[328003122,1716766324500,-542.9,0.00029863,4]
[328003123,1716766324510,-346.17,0.00029863,4]
[328003124,1716766324519,-500.0,0.00029863,4]
[328003125,1716766324529,-305.57,0.00029863,4]
[328003126,1716766324538,-190.09,0.00029863,4]
[328003127,1716766324547,-500.0,0.00029863,4]
[328003128,1716766324556,-500.0,0.00029863,4]
[328003129,1716766324565,-944.44,0.00029863,4]
[328003130,1716766324575,-500.0,0.00029863,4]
[328003131,1716766324584,-461.04,0.00029863,4]
[328003132,1716766324593,-604.45,0.00029863,4]
[328003133,1716766324603,-500.0,0.00029863,4]
[328003134,1716766324612,-791.42,0.00029863,4]
[328003135,1716766324622,-500.0,0.00029863,4]
[328003136,1716766324631,-500.0,0.00029863,4]
[328003137,1716766324640,-500.0,0.00029863,4]
[328003138,1716766324649,-500.0,0.00029863,4]
[328003139,1716766324658,-500.0,0.00029863,4]
[328003140,1716766324667,-405.18,0.00029863,4]
[328003141,1716766324676,-500.0,0.00029863,4]
[328003142,1716766324686,-822.31,0.00029863,4]
[328003143,1716766324695,-500.0,0.00029863,4]
[328003144,1716766324705,-500.0,0.00029863,4]
[328003145,1716766324715,-500.0,0.00029863,4]
[328003146,1716766324724,-620.76,0.00029863,4]
[328003147,1716766324733,-500.0,0.00029863,4]
[328003148,1716766324743,-500.0,0.00029863,4]
[328003149,1716766324754,-500.0,0.00029863,4]
[328003150,1716766324763,-500.0,0.00029863,4]
[328003151,1716766324773,-500.0,0.00029863,4]
[328003152,1716766324782,-500.0,0.00029863,4]
[328003153,1716766324791,-500.0,0.00029863,4]
[328003154,1716766324801,-576.1,0.00029863,4]
[328003155,1716766324810,-697.5,0.00029863,4]
[328003156,1716766324820,-500.0,0.00029863,4]
[328003157,1716766324830,-500.0,0.00029863,4]
[328003158,1716766324839,-547.78,0.00029863,4]
[328003159,1716766324849,-745.11,0.00029863,4]
[328003160,1716766324859,-500.0,0.00029863,4]
[328003161,1716766324869,-500.0,0.00029863,4]
[328003162,1716766324879,-500.0,0.00029863,4]
[328003163,1716766324889,-500.0,0.00029863,4]
[328003164,1716766324898,-500.0,0.00029863,4]
[328003165,1716766324910,-405.91,0.00029863,4]
[328003166,1716766324920,-548.59,0.00029863,4]
[328003167,1716766324930,-544.06,0.00029863,4]
[328003168,1716766324940,-500.0,0.00029863,4]
[328003169,1716766324950,-521.76,0.00029863,4]
[328003170,1716766324960,-500.0,0.00029863,4]
[328003171,1716766324969,-500.0,0.00029863,4]
[328003172,1716766324978,-546.32,0.00029863,4]
[328003173,1716766324987,-503.3,0.00029863,4]
[328003174,1716766324997,-500.0,0.00029863,4]
[328003175,1716766325006,-500.0,0.00029863,4]
[328003176,1716766325016,-200.62,0.00029863,4]
[328003177,1716766325026,-608.08,0.00029863,4]
[328003178,1716766325035,-500.0,0.00029863,4]
[328003179,1716766325044,-500.0,0.00029863,4]
[328003180,1716766325054,-513.73,0.00029863,4]
[328003181,1716766325063,-495.22,0.00029863,4]
[328003182,1716766325073,-500.0,0.00029863,4]
[328003183,1716766325083,-1125.41,0.00029863,4]
[328003184,1716766325092,-500.0,0.00029863,4]
[328003185,1716766325101,-534.62,0.00029863,4]
[328003186,1716766325111,-500.0,0.00029863,4]
[328003187,1716766325121,-500.0,0.00029863,4]
[328003188,1716766325130,-540.75,0.00029863,4]
[328003189,1716766325139,-500.0,0.00029863,4]
[328003190,1716766325148,-500.0,0.00029863,4]
[328003191,1716766325157,-1235.19,0.00029863,4]
[328003192,1716766325167,-729.16,0.00029863,4]
[328003193,1716766325176,-500.0,0.00029863,4]
[328003194,1716766325186,-500.0,0.00029863,4]
[328003195,1716766325195,-212.66,0.00029863,4]
[328003196,1716766325205,-500.0,0.00029863,4]
[328003197,1716766325215,-500.0,0.00029863,4]
[328003198,1716766325224,-500.0,0.00029863,4]
[328003199,1716766325234,-500.0,0.00029863,4]
[328003200,1716766325244,-500.0,0.00029863,4]
[328003201,1716766325259,-196.56,0.00029863,4]
[328003202,1716766325267,-864.88,0.00029863,4]
[328003203,1716766325277,-500.0,0.00029863,4]
[328003204,1716766325287,-500.0,0.00029863,4]
[328003205,1716766325296,-963.86,0.00029863,4]
[328003206,1716766325306,-500.0,0.00029863,4]
[328003207,1716766325315,-500.0,0.00029863,4]
[328003208,1716766325325,-500.0,0.00029863,4]
[328003209,1716766325336,-500.0,0.00029863,4]
[328003210,1716766325346,-500.0,0.00029863,4]
[328003211,1716766325355,-874.71,0.00029863,4]
[328003212,1716766325365,-835.43,0.00029863,4]
[328003213,1716766325374,-500.0,0.00029863,4]
[328003214,1716766325383,-529.68,0.00029863,4]
[328003215,1716766325392,-1126.6,0.00029863,4]
[328003216,1716766325401,-1097.89,0.00029863,4]
[328003217,1716766325410,-500.0,0.00029863,4]
[328003218,1716766325419,-500.0,0.00029863,4]
[328003219,1716766325429,-866.64,0.00029863,4]
[328003220,1716766325439,-524.51,0.00029863,4]
[328003221,1716766325449,-500.0,0.00029863,4]
[328003222,1716766325459,-500.0,0.00029863,4]
[328003223,1716766325467,-208.54,0.00029863,4]
[328003224,1716766325477,-500.0,0.00029863,4]
[328003225,1716766325487,-500.0,0.00029863,4]
[328003226,1716766325497,-500.0,0.00029863,4]
[328003227,1716766325507,-500.0,0.00029863,4]
[328003228,1716766325516,-500.0,0.00029863,4]
[328003229,1716766325526,-500.0,0.00029863,4]
[328003230,1716766325535,-754.22,0.00029863,4]
[328003231,1716766325545,-1051.14,0.00029863,4]
[328003232,1716766325554,-500.0,0.00029863,4]
[328003233,1716766325563,-500.0,0.00029863,4]
[328003234,1716766325572,-500.0,0.00029863,4]
[328003235,1716766325582,-500.0,0.00029863,4]
[328003236,1716766325593,-500.0,0.00029863,4]
[328003237,1716766325604,-500.0,0.00029863,4]
[328003238,1716766325614,-500.0,0.00029863,4]
[328003239,1716766325623,-1051.14,0.00029863,4]
[328003240,1716766325633,-500.0,0.00029863,4]
[328003241,1716766325643,-500.0,0.00029863,4]
[328003242,1716766325652,-500.0,0.00029863,4]
[328003243,1716766325662,-500.0,0.00029863,4]
[328003244,1716766325671,-500.0,0.00029863,4]
[328003245,1716766325681,-1380.33,0.00029863,4]
[328003246,1716766325690,-500.0,0.00029863,4]
[328003247,1716766325699,-828.3,0.00029863,4]
[328003248,1716766325708,-832.97,0.00029863,4]
[328003249,1716766325718,-500.0,0.00029863,4]
[328003250,1716766325727,-500.0,0.00029863,4]
[328003251,1716766325737,-500.0,0.00029863,4]
[328003252,1716766325747,-716.96,0.00029863,4]